fUST/lending_fUST_20240708
["ID","MTS","AMOUNT","RATE_DAILY","PERIOD"]
[331502056,1720441840525,-168.739051,0.00027661,2]
[331502057,1720441840541,-159.416973,0.00032301,2]
[331502058,1720441840551,-3807.53400776,0.00034623,4]
[331502059,1720441840562,-1662.013679,0.00035292,4]
[331502060,1720441840573,-1202.34331483,0.00037899,60]
[331502061,1720441840583,-803.80826159,0.0003855,30]
[331502062,1720441840593,-154.66746495,0.00039393,4]
[331502063,1720441840604,-154.66746495,0.00039393,4]
[331502064,1720441840618,-149.999999,0.0004,30]
[331502065,1720441840629,-500.0,0.0004,30]
[331502066,1720441840639,-154.65203293,0.00040584,4]
[331502067,1720441840650,-139499.45391615,0.0004097,30]
[331502271,1720443038422,-166.842699,0.00021096,2]
[331502272,1720443038432,-167.115986,0.00021096,2]
[331502273,1720443038446,-159.416973,0.00024884,2]
[331502274,1720443038456,-300.0,0.000255,2]
[331502275,1720443038465,-1403.86304612,0.00025501,2]
[331502302,1720443040452,-34594.81430388,0.00025501,2]
[331502304,1720443040463,-498.57500686,0.00025606,2]
[331502305,1720443040473,-24900.0,0.00025706,2]
[331502306,1720443040483,-160.620917,0.00029919,2]
[331502307,1720443040493,-150.0,0.0003156,2]
[331502308,1720443040503,-150.59940171,0.00031865,2]
[331502309,1720443040512,-248.0,0.00031979,2]
[331502310,1720443040522,-3807.53400776,0.00034771,4]
[331502311,1720443040531,-1662.013679,0.00035999,4]
[331502312,1720443040541,-1092.21683455,0.00036732,21]
[331502313,1720443040551,-503.51171166,0.00037523,4]
[331502314,1720443040561,-1202.34331483,0.00037899,60]
[331502315,1720443040571,-154.66746495,0.00038999,4]
[331502316,1720443040580,-10000.0,0.0004,15]
[331502317,1720443040590,-3000.0,0.0004,15]
[331502319,1720443040599,-23231.51,0.00040878,3]
[331502321,1720443040609,-27877.81,0.00040888,3]
[331502322,1720443040619,-15014.34047196,0.00040898,3]
[331502331,1720443043751,-1627.7573865,0.00040898,2]
[331502332,1720443043761,-462.53,0.00040908,3]
[331502333,1720443043771,-2000.0,0.00040928,2]
[331502334,1720443043781,-1405.64635499,0.00040928,5]
[331502335,1720443043875,-11076.85918751,0.00040928,5]
[331502336,1720443043885,-500.0,0.00040947,31]
[331502337,1720443043894,-448.70474771,0.00040947,31]
[331502338,1720443043987,-370.78004421,0.00040947,31]
[331502339,1720443043997,-242.02628833,0.00040947,31]
[331502340,1720443044008,-500.0,0.00040947,31]
[331502341,1720443044018,-500.0,0.00040947,31]
[331502342,1720443044027,-438.91477568,0.00040947,31]
[331502343,1720443044037,-388.43368179,0.00040947,31]
[331502344,1720443044046,-500.0,0.00040947,31]
[331502345,1720443044056,-500.0,0.00040947,31]
[331502346,1720443044066,-500.0,0.00040947,31]
[331502347,1720443044075,-535.29101898,0.00040947,31]
[331502348,1720443044085,-500.0,0.00040947,31]
[331502349,1720443044094,-500.0,0.00040947,31]
[331502350,1720443044104,-88.92313593,0.00040947,31]
[331502536,1720444238661,-161.3041,0.00021096,2]
[331502538,1720444238671,-35998.67735,0.00025501,2]
[331502540,1720444238684,-436.25313102,0.00026425,2]
[331502542,1720444238693,-160.620917,0.00026526,2]
[331502544,1720444238703,-24900.0,0.0003463,2]
[331502546,1720444238712,-3807.53400776,0.00034642,4]
[331502548,1720444238722,-2476.55589619,0.00035259,60]
[331502550,1720444238731,-1662.013679,0.00035615,4]
[331502552,1720444238740,-1662.013679,0.00035615,4]
[331502554,1720444238749,-1000.0,0.00037,37]
[331502555,1720444238758,-1092.21683455,0.00037523,21]
[331502557,1720444238767,-161.3041,0.00037652,2]
[331502558,1720444238776,-202.69174452,0.00038999,4]
[331502560,1720444238786,-1000.0,0.00039,39]
[331502562,1720444238795,-154.66746495,0.00039393,4]
[331502563,1720444238804,-1302.2059092,0.0003988,2]
[331502564,1720444238814,-2000.0,0.0003989,2]
[331502565,1720444238823,-434.50166734,0.000399,2]
[331502566,1720444238833,-217.04938694,0.000399,2]
[331502567,1720444238842,-84061.3400483,0.000399,30]
[331502596,1720444240761,-23672.91,0.0003989,3]
[331502597,1720444240772,-64121.03748471,0.000399,30]
[331502598,1720444240785,-3781.4191697,0.000399,30]
[331502630,1720444243750,-154.66746495,0.00039177,4]
[331502631,1720444243760,-4421.76253505,0.000399,30]
[331510081,1720444881305,150.0,0.00025,120]
[331515514,1720445437872,-161.3041,0.00021096,2]
[331515516,1720445437881,-562.81480951,0.00025,2]
[331515518,1720445437891,-3419.65595468,0.00025,2]
[331515520,1720445437901,-4824.60948793,0.00025,2]
[331515522,1720445437911,-201.52676719,0.00025,2]
[331515524,1720445437921,-174.41530961,0.00025,2]
[331515527,1720445437930,-381.72148966,0.00027506,2]
[331515528,1720445437942,-159.416973,0.00027606,2]
[331515531,1720445437952,-374.75657396,0.00029979,2]
[331515533,1720445437961,-440.67378173,0.00030229,4]
[331515535,1720445437971,-24900.0,0.00031263,2]
[331515537,1720445437980,-3807.53400776,0.00034771,4]
[331515539,1720445437990,-217.04938694,0.00034899,2]
[331515540,1720445437999,-217.04938694,0.00035178,2]
[331515543,1720445438009,-1662.013679,0.00035292,4]
[331515544,1720445438018,-2476.55589619,0.00035292,60]
[331515547,1720445438028,-1302.2059092,0.00035446,2]
[331515549,1720445438038,-217.04938694,0.00035456,2]
[331515551,1720445438048,-12605.1098595,0.00035546,4]
[331515553,1720445438058,-500.0,0.00035555,7]
[331515554,1720445438068,-500.0,0.00035555,7]
[331515556,1720445438078,-259.54603095,0.00035555,7]
[331515557,1720445438087,-307.24034298,0.00035555,7]
[331515558,1720445438097,-169.41840183,0.00035555,7]
[331515559,1720445438107,-500.0,0.00035555,7]
[331515560,1720445438117,-314.09332339,0.00035555,7]
[331515561,1720445438127,-574.70371328,0.00035555,7]
[331515562,1720445438136,-181.0733461,0.00035555,7]
[331515563,1720445438146,-321.90357726,0.00035555,7]
[331515564,1720445438155,-500.0,0.00035555,7]
[331515565,1720445438165,-500.0,0.00035555,7]
[331515566,1720445438174,-55502.86880313,0.00035556,2]
[331515567,1720445438186,-151.0,0.00035556,7]
[331515568,1720445438195,-360.756358,0.00035556,7]
[331515569,1720445438205,-360.756358,0.00035556,7]
[331515570,1720445438214,-212.35316,0.00035556,7]
[331515571,1720445438223,-187.49828,0.00035556,7]
[331515572,1720445438232,-212.35316,0.00035556,7]
[331515573,1720445438242,-187.49828,0.00035556,7]
[331515574,1720445438251,-1302.20590917,0.0003711,2]
[331515575,1720445438261,-1092.21683455,0.00037259,21]
[331515576,1720445438271,-1302.20590917,0.00038773,2]
[331515577,1720445438281,-202.69174452,0.00039177,4]
[331515578,1720445438290,-154.66746495,0.00039393,4]
[331515579,1720445438300,-248.0,0.00039571,2]
[331515580,1720445438310,-434.50166734,0.0003987,2]
[331515581,1720445438319,-1489.07899339,0.00039899,30]
[331515588,1720445439942,-1662.013679,0.00035292,4]
[331515590,1720445439952,-86131.93380571,0.00039899,30]
[331515659,1720445443159,-0.07265819,0.00039889,3]
[331515800,1720445843044,258.24743035,0.0001,2]
[331519157,1720446240813,49.69878246,0.00012121,2]
[331519158,1720446240845,344.21780948,0.00012121,2]
[331519159,1720446240876,843.83970303,0.00012121,2]
[331519160,1720446240908,251.48479594,0.00012121,2]
[331519161,1720446253539,155.19158238,0.00012121,2]
[331519162,1720446255099,101.26246702,0.00015,2]
[331519163,1720446255133,433.69927177,0.00015,2]
[331519164,1720446255166,4.80011,0.00015,2]
[331519165,1720446257012,839.03783078,0.00012121,2]
[331519166,1720446257045,600.1317733,0.00012121,2]
[331519168,1720446331165,240.05101832,0.00014692,2]
[331519169,1720446364321,-154.84530282,0.00018,2]
[331519170,1720446369085,240.05101832,0.00014692,2]
[331519176,1720446429087,240.05101832,0.00017808,2]
[331520071,1720446631967,509.35145067,0.00018899,4]
[331520078,1720446632543,-182.51217201,0.00021095,2]
[331520079,1720446632552,-161.3041,0.00021096,2]
[331520080,1720446632561,-240.05101832,0.00021585,2]
[331520081,1720446632571,-160.058249,0.00026903,2]
[331520082,1720446632580,-1000.0,0.00029,3]
[331520083,1720446632589,-252.678606,0.00029869,7]
[331520084,1720446632599,-157.03548,0.00029869,7]
[331520086,1720446632608,-151.0,0.00029869,2]
[331520087,1720446632617,-151.0,0.00029879,2]
[331520088,1720446632627,-204.94548438,0.0003,3]
[331520089,1720446632637,-196.66202373,0.0003,4]
[331520090,1720446632646,-1567.77514604,0.00030103,2]
[331520091,1720446632655,-240.0,0.00033999,2]
[331520092,1720446632664,-1000.0,0.00034,34]
[331520093,1720446632674,-1735.83036858,0.00034451,2]
[331520094,1720446632683,-237.0,0.00034491,2]
[331520095,1720446632692,-151.0,0.00034541,2]
[331520096,1720446632701,-5808.14450636,0.00034551,2]
[331520171,1720446640318,-27348.42285044,0.00034551,2]
[331520173,1720446640327,-151.0,0.00034551,2]
[331520174,1720446640337,-212.35316,0.00034551,7]
[331520175,1720446640346,-212.35316,0.00034551,7]
[331520176,1720446640355,-3807.53400776,0.0003467,4]
[331520177,1720446640365,-217.04938694,0.00035445,2]
[331520178,1720446640374,-12605.1098595,0.00035546,4]
[331520179,1720446640383,-41220.44,0.00035546,3]
[331520180,1720446640395,-34350.37,0.00035546,3]
[331520181,1720446640404,-55502.86880313,0.00035556,2]
[331520182,1720446640414,-259.09298,0.00035556,2]
[331520183,1720446640423,-151.0,0.00035556,7]
[331520185,1720446640432,-360.756358,0.00035556,7]
[331520186,1720446640441,-360.756358,0.00035556,7]
[331520187,1720446640450,-154.030342,0.00035556,7]
[331520188,1720446640460,-212.35316,0.00035556,7]
[331520189,1720446640469,-212.35316,0.00035556,7]
[331520190,1720446640478,-151.0,0.00035556,7]
[331520191,1720446640488,-986.452792,0.00035556,7]
[331520192,1720446640497,-154.76012181,0.00035581,4]
[331520193,1720446640506,-1735.83036855,0.00036311,2]
[331520194,1720446640516,-1092.21683455,0.00036351,21]
[331520195,1720446640525,-151.0,0.00036838,7]
[331520196,1720446640535,-151.0,0.00036838,7]
[331520198,1720446640545,-151.0,0.00036838,7]
[331520199,1720446640555,-151.0,0.00036838,7]
[331520200,1720446640637,-986.452792,0.00036838,7]
[331520201,1720446640649,-24900.0,0.00036838,2]
[331520203,1720446640658,-360.756358,0.00036841,7]
[331520204,1720446640668,-360.756358,0.00036841,7]
[331520205,1720446640677,-212.35316,0.00036841,7]
[331520206,1720446640687,-212.35316,0.00036841,7]
[331520207,1720446640697,-1662.013679,0.00037259,4]
[331520208,1720446640707,-217.04938694,0.00037573,2]
[331520209,1720446640717,-12605.1098595,0.0003816,4]
[331520210,1720446640728,-1735.83036855,0.0003817,2]
[331520211,1720446640738,-190.95,0.0003899,62]
[331520212,1720446640747,-1000.0,0.00039,39]
[331520213,1720446640756,-202.69174452,0.00039177,4]
[331520214,1720446640766,-150.0,0.00039389,2]
[331520215,1720446640776,-377.5047869,0.00039393,4]
[331520217,1720446640785,-248.0,0.00039485,2]
[331520218,1720446640794,-150.59940171,0.00039699,2]
[331520219,1720446640803,-217.04938694,0.000397,2]
[331520220,1720446640813,-500.0,0.00039788,31]
[331520221,1720446640822,-450.0,0.00039788,31]
[331520222,1720446640831,-574.70371328,0.00039788,31]
[331520223,1720446640840,-500.0,0.00039788,31]
[331520224,1720446640850,-314.09332339,0.00039788,31]
[331520225,1720446640858,-259.54603095,0.00039788,31]
[331520226,1720446640867,-409.07918383,0.00039788,31]
[331520227,1720446640876,-169.41840183,0.00039788,31]
[331520229,1720446640888,-103321.10137361,0.00039789,30]
[331520291,1720446643559,-2476.55589619,0.00035259,60]
[331520292,1720446643568,-986.452792,0.00035556,7]
[331520293,1720446643577,-986.452792,0.00036838,7]
[331520294,1720446643586,-500.0,0.00039788,31]
[331520295,1720446643625,-321.90357726,0.00039788,31]
[331520297,1720446643634,-1312.19805111,0.00039789,30]
[331520990,1720446714783,13596.99120987,0.00018899,2]
[331521459,1720446765435,1000.0,0.00025,120]
[331522697,1720446872687,568.09229484,0.00014999,2]
[331523106,1720446919675,177.98027526,0.00014999,4]
[331526857,1720447180320,15000.0,0.00025,120]
[331526900,1720447832951,-300.0,0.00016254,2]
[331526903,1720447832961,-300.0,0.00016254,2]
[331526905,1720447832971,-1731.78205957,0.00016255,2]
[331527192,1720447842997,-24444.73615885,0.00016255,2]
[331527194,1720447843007,-420.0,0.00017766,2]
[331527197,1720447843016,-420.0,0.00017879,2]
[331527199,1720447843026,-214.9633723,0.00018763,2]
[331527202,1720447843036,-197.16900924,0.00019039,2]
[331527204,1720447843045,-587.0,0.00019667,2]
[331527207,1720447843054,-373.54534,0.00019829,2]
[331527210,1720447843064,-161.378549,0.00019995,2]
[331527212,1720447843074,-155.40087376,0.0002,2]
[331527216,1720447843083,-250.0,0.00020352,2]
[331527220,1720447843093,-168.183788,0.00020468,2]
[331527222,1720447843102,-1043.06616108,0.00020479,2]
[331527224,1720447843111,-500.84453017,0.00020579,2]
[331527227,1720447843121,-537.79730357,0.00020579,2]
[331527230,1720447843131,-24900.0,0.0002058,2]
[331527233,1720447843140,-160.650419,0.00021096,2]
[331527235,1720447843149,-150.0,0.000229,2]
[331527238,1720447843162,-168.183788,0.00023258,2]
[331527241,1720447843172,-200.0,0.00024658,15]
[331527245,1720447843182,-380.0,0.00024658,2]
[331527249,1720447843192,-1755.02070677,0.0002488,2]
[331527252,1720447843202,-14669.8980821,0.0002494,3]
[331527255,1720447843212,-14669.8980821,0.0002495,3]
[331527258,1720447843222,-23854.42,0.0002495,3]
[331527261,1720447843232,-28625.31,0.0002496,3]
[331527265,1720447843241,-34350.37,0.0002497,3]
[331527269,1720447843250,-41220.44,0.0002498,3]
[331527272,1720447843259,-409.07918383,0.00024989,2]
[331527276,1720447843269,-500.0,0.00024989,2]
[331527280,1720447843278,-169.41840183,0.00024989,2]
[331527283,1720447843287,-314.09332339,0.00024989,2]
[331527286,1720447843297,-500.0,0.00024989,2]
[331527289,1720447843306,-500.0,0.00024989,2]
[331527292,1720447843316,-599.54987095,0.00024989,2]
[331527295,1720447843325,-574.70371328,0.00024989,2]
[331527298,1720447843335,-575.33250408,0.00024989,2]
[331527301,1720447843344,-231.153362,0.0002499,7]
[331527304,1720447843354,-73349.4904103,0.0002499,3]
[331527306,1720447843363,-293.76141433,0.00025,2]
[331527309,1720447843373,-189.17055998,0.00025,2]
[331527311,1720447843382,-244670.31211379,0.00025,2]
[331527312,1720447843391,-3925.47207041,0.00025,30]
[331527314,1720447843400,-217.04938694,0.00025002,2]
[331527316,1720447843412,-1755.02070675,0.00025102,2]
[331527317,1720447843421,-1755.02070675,0.00025325,2]
[331527318,1720447843431,-14669.8980821,0.00025491,3]
[331527320,1720447843440,-36590.66463124,0.00025501,2]
[331527637,1720448774609,5503.49557759,0.00014998,2]
[331527638,1720448803901,5210.0005731,0.00014998,2]
[331527651,1720448921135,3773.14321747,0.00014998,2]
[331527652,1720448928088,-300.0,0.00016254,2]
[331527653,1720448928132,-626.27295453,0.00016255,2]
[331527654,1720448928168,-926.27295453,0.00016255,2]
[331527655,1720448928203,-298.82888454,0.00016255,2]
[331527656,1720448929492,1229.17431562,0.00014998,2]
[331527657,1720448930844,4391.26697558,0.00014998,2]
[331527658,1720448934666,155.25511355,0.00014998,2]
[331527661,1720448937671,3557.84259108,0.00014998,2]
[331527664,1720448942951,676.52858805,0.00014998,2]
[331527665,1720448942978,1089.69149357,0.00014998,2]
[331527666,1720448952497,-300.0,0.00016254,2]
[331527667,1720448952529,-669.3004504,0.00016255,2]
[331527668,1720448955884,5210.0005731,0.00014999,2]
[331527670,1720448983527,953.04201173,0.00015,2]
[331527671,1720448985837,11077.25610598,0.00014998,2]
[331527672,1720448987403,270.77422265,0.00014999,2]
[331527673,1720448989020,155.83193542,0.00014999,2]
[331527674,1720448989233,359.022362,0.00014999,2]
[331527676,1720448998474,305.87646812,0.00014999,2]
[331527679,1720449017210,213.01900407,0.00014999,2]
[331527683,1720449028403,1489.50426345,0.00014999,2]
[331527711,1720449032837,250.92587102,0.00014999,2]
[331527729,1720449033177,-300.0,0.00016254,2]
[331527731,1720449033187,-298.23431439,0.00016255,2]
[331527737,1720449033232,-506.0,0.00016255,2]
[331527755,1720449034752,440.67378173,0.00014999,2]
[331527797,1720449038657,-10221.34869839,0.00016255,2]
[331527798,1720449038667,-175.06419494,0.00016255,2]
[331527800,1720449038678,-451.98078466,0.00016255,2]
[331527802,1720449038688,-885.64307745,0.00016255,2]
[331527803,1720449038698,-252.18899173,0.00016255,2]
[331527805,1720449038707,-379.32113345,0.00016255,2]
[331527807,1720449038717,-1634.59229075,0.00016255,2]
[331527808,1720449038727,-155.47658191,0.00016255,2]
[331527810,1720449038736,-360.16423676,0.00016255,2]
[331527812,1720449038748,-1086.61186892,0.00016255,2]
[331527813,1720449038758,-155.3062925,0.00016255,2]
[331527815,1720449038768,-240.05101832,0.00016255,2]
[331527816,1720449038779,-674.33685413,0.00016255,2]
[331527818,1720449038789,-601.0404053,0.00016255,2]
[331527820,1720449038800,-250.91957683,0.00016255,2]
[331527821,1720449038811,-155.64297059,0.00016255,2]
[331527823,1720449038821,-696.2767755,0.00016255,2]
[331527825,1720449038831,-155.19639919,0.00016255,2]
[331527826,1720449038840,-176.01807338,0.00016255,2]
[331527828,1720449038851,-359.0,0.00016298,2]
[331527830,1720449038860,-359.0,0.00016698,2]
[331527831,1720449038876,-359.0,0.00016929,2]
[331527833,1720449038894,-359.0,0.00017078,2]
[331527835,1720449038904,-359.0,0.00017417,2]
[331527836,1720449038916,-359.0,0.0001777,2]
[331527838,1720449038926,-420.0,0.00017879,2]
[331527840,1720449038936,-359.0,0.00017894,2]
[331527841,1720449038948,-166.7944223,0.00018179,2]
[331527843,1720449038958,-723.61521419,0.00018179,2]
[331527845,1720449038969,-203.80005202,0.0001818,2]
[331527846,1720449038980,-1400.71994862,0.0001818,2]
[331527848,1720449038990,-3580.0003938,0.0001818,2]
[331527849,1720449039001,-359.0,0.00018296,2]
[331527851,1720449039016,-359.0,0.00018458,2]
[331527853,1720449039027,-359.0,0.00018668,2]
[331527855,1720449039039,-359.0,0.00019172,2]
[331527856,1720449039050,-160.058249,0.00019178,2]
[331527858,1720449039061,-359.0,0.00019417,2]
[331527860,1720449039072,-359.0,0.00019626,2]
[331527861,1720449039082,-306.0,0.00019667,2]
[331527863,1720449039093,-359.0,0.00019991,2]
[331527864,1720449039105,-359.0,0.00020131,2]
[331527866,1720449039115,-359.0,0.00020461,2]
[331527868,1720449039126,-359.0,0.00020801,2]
[331527874,1720449039222,-1000.0,0.00021,3]
[331527876,1720449039234,-359.0,0.00021056,2]
[331527877,1720449039245,-158.730692,0.00021096,2]
[331527879,1720449039255,-160.650419,0.00021096,2]
[331527881,1720449039266,-359.0,0.00021255,2]
[331527882,1720449039277,-359.0,0.00021568,2]
[331527884,1720449039287,-359.0,0.00021656,2]
[331527886,1720449039298,-624.86426773,0.00021671,2]
[331527887,1720449039308,-19379.65431594,0.00021903,2]
[331527889,1720449039325,-5520.34568406,0.00021903,2]
[331527891,1720449039335,-217.04938694,0.00022048,2]
[331527893,1720449039346,-359.0,0.00022148,2]
[331527895,1720449039356,-359.0,0.00022239,2]
[331527897,1720449039368,-150.29238822,0.00022274,2]
[331527899,1720449039378,-160.390844,0.00022293,2]
[331527900,1720449039396,-359.0,0.00022484,2]
[331527902,1720449039407,-11111.35069313,0.00022579,2]
[331527903,1720449039417,-620.24321339,0.00022754,2]
[331527905,1720449039427,-359.0,0.00022829,2]
[331527907,1720449039437,-359.0,0.00023124,2]
[331527908,1720449039447,-359.0,0.00023356,2]
[331527910,1720449039458,-359.0,0.00023691,2]
[331527912,1720449039470,-359.0,0.00023858,2]
[331527913,1720449039481,-620.01216067,0.00023892,2]
[331527915,1720449039492,-13193.9984594,0.0002399,3]
[331527917,1720449039503,-10175.81717019,0.00024,2]
[331527919,1720449039516,-598.36861874,0.00024,2]
[331527920,1720449039529,-359.0,0.0002431,2]
[331527922,1720449039539,-359.0,0.00024578,2]
[331527923,1720449039550,-359.0,0.00024728,2]
[331527924,1720449039560,-784.12608248,0.00024838,2]
[331527925,1720449039571,-1000.0,0.00025,4]
[331527926,1720449039583,-243.20391872,0.00025,2]
[331527927,1720449039594,-359.0,0.0002505,2]
[331527928,1720449039604,-150.59940171,0.00025252,2]
[331527929,1720449039615,-3166.91820568,0.00025391,2]
[331527930,1720449039625,-359.0,0.00025467,2]
[331527931,1720449039648,-3925.47207041,0.00025501,30]
[331527932,1720449039658,-15536.94710086,0.00025501,2]
[331527933,1720449039669,-519.74417806,0.00025802,2]
[331527934,1720449039679,-217.04938694,0.00025924,2]
[331527935,1720449039689,-359.0,0.00026027,2]
[331527936,1720449039699,-359.0,0.00026225,2]
[331527937,1720449039710,-359.0,0.00026452,2]
[331527938,1720449039720,-532.24050528,0.00026574,2]
[331527939,1720449039729,-276.57925528,0.00026574,2]
[331527940,1720449039740,-276.57925528,0.00026574,2]
[331527941,1720449039750,-359.0,0.00026707,2]
[331527942,1720449039761,-359.0,0.00026851,2]
[331527943,1720449039771,-359.0,0.00027161,2]
[331527944,1720449039781,-500.0,0.00027397,2]
[331527945,1720449039791,-429.7573059,0.00027397,2]
[331527946,1720449039801,-359.0,0.00027468,2]
[331527948,1720449039811,-359.0,0.00027819,2]
[331527949,1720449039821,-208.30150365,0.00028,2]
[331527951,1720449039831,-359.0,0.00028165,2]
[331527953,1720449039841,-359.0,0.0002847,2]
[331527955,1720449039851,-359.0,0.00028668,2]
[331527957,1720449039863,-158.730692,0.00028822,2]
[331527959,1720449039875,-3166.91820566,0.00028823,2]
[331527961,1720449039895,-359.0,0.00028952,2]
[331527963,1720449039907,-2012.36431335,0.00029211,3]
[331527968,1720449039942,188.24500969,0.00014999,2]
[331528214,1720449043826,-605.98797954,0.00016155,2]
[331528217,1720449043835,-532.24050528,0.00025869,2]
[331528220,1720449043844,-11181.63414605,0.00029211,3]
[331528223,1720449043853,-359.0,0.00029268,2]
[331528226,1720449043863,-359.0,0.00029442,2]
[331528228,1720449043872,-365.0,0.00029638,2]
[331528230,1720449043887,-45510.26295332,0.00029793,2]
[331528242,1720449043993,-490.88284198,0.00029793,2]
[331528482,1720449046539,-2365.5992047,0.00029793,2]
[331528484,1720449046548,-217.04938694,0.000298,2]
[331528486,1720449046558,-13193.9984594,0.00029813,3]
[331528488,1720449046567,-1102.99874107,0.000299,2]
[331528497,1720449046640,-500.0,0.00029999,2]
[331528499,1720449046652,-388.93563576,0.00029999,2]
[331528501,1720449046661,-435.37680117,0.00029999,2]
[331528503,1720449046671,-500.0,0.00029999,2]
[331528505,1720449046680,-500.0,0.00029999,2]
[331528507,1720449046689,-500.0,0.00029999,2]
[331528509,1720449046699,-500.0,0.00029999,2]
[331528511,1720449046708,-618.14347067,0.00029999,2]
[331528513,1720449046717,-242.10360511,0.00029999,2]
[331528514,1720449046726,-134.62249708,0.00029999,2]
[331528517,1720449046739,-365.37750292,0.00029999,2]
[331528519,1720449046749,-500.0,0.00029999,2]
[331528521,1720449046759,-521.23259239,0.00029999,2]
[331528523,1720449046768,-500.0,0.00029999,2]
[331528525,1720449046777,-421.01375915,0.00029999,2]
[331528527,1720449046786,-500.0,0.00029999,2]
[331528529,1720449046796,-500.0,0.00029999,2]
[331528531,1720449046805,-500.0,0.00029999,2]
[331528533,1720449046814,-500.0,0.00029999,2]
[331528535,1720449046824,-500.0,0.00029999,2]
[331528536,1720449046833,-583.41544626,0.00029999,2]
[331528538,1720449046842,-1000.0,0.0003,30]
[331528540,1720449046851,-396.0,0.0003,2]
[331528542,1720449046860,-160.650419,0.00030011,2]
[331528544,1720449046874,-151.07444044,0.00030802,2]
[331528545,1720449046889,-151.0,0.0003091,7]
[331528546,1720449046898,-151.0,0.0003091,7]
[331528547,1720449046908,-360.756358,0.0003091,7]
[331528548,1720449046918,-360.756358,0.0003091,7]
[331528549,1720449046928,-151.0,0.0003091,7]
[331528550,1720449046938,-303.361657,0.0003091,7]
[331528551,1720449046949,-303.361657,0.0003091,7]
[331528552,1720449046958,-3166.91820566,0.00032254,2]
[331528553,1720449046967,-150.0,0.00032877,2]
[331528554,1720449046977,-151.0,0.00033796,2]
[331528555,1720449046987,-13193.9984594,0.00033797,4]
[331528556,1720449046996,-172.014615,0.00033807,7]
[331528557,1720449047006,-2243.63967089,0.00033807,2]
[331528558,1720449047018,-720.04323165,0.00033807,2]
[331529335,1720449101296,201.52676719,0.00014999,2]
[331529338,1720449158542,157.32525455,0.00014999,2]
[331529339,1720449161631,3419.65595468,0.00014999,2]
[331529340,1720449164045,4824.60948793,0.00014999,2]
[331529341,1720449164890,10716.90726215,0.00014998,2]
[331529342,1720449172922,883.47855585,0.00014999,2]
[331529343,1720449173472,1060.84230124,0.00015,2]
[331529344,1720449175557,154.82195475,0.00014999,2]
[331529345,1720449176545,948.9256647,0.00015,2]
[331529346,1720449176813,1104.74204561,0.00015,2]
[331529347,1720449176911,308.40386736,0.00014999,2]
[331529348,1720449177938,156.72112003,0.00014999,2]
[331529349,1720449192206,155.10844789,0.00014999,2]
[331529350,1720449195569,245.20046817,0.00014999,2]
[331529351,1720449196431,532.24050528,0.00014999,2]
[331529352,1720449201739,240.05101832,0.00014999,2]
[331529353,1720449206282,3078.85157566,0.00014999,2]
[331529354,1720449207486,9615.23092531,0.00014998,2]
[331529356,1720449228412,5210.0005731,0.00014998,2]
[331529366,1720449318579,308.73332672,0.00014999,2]
[331529368,1720449369957,183.64218738,0.00014999,2]
[331529369,1720449377758,240.05101832,0.00014999,2]
[331529370,1720449379984,458.22974675,0.00014999,2]
[331529375,1720449423924,5210.0005731,0.00014998,2]
[331529388,1720449500246,209.36990223,0.00014999,2]
[331529398,1720449578926,5210.0005731,0.00014998,2]
[331529399,1720449608921,5210.0005731,0.00014998,2]
[331529400,1720449615528,154.79952594,0.00014999,2]
[331529401,1720449696211,496.22354894,0.00014999,2]
[331529402,1720449763438,1160.0001276,0.00014999,2]
[331529404,1720449780615,155.4988533,0.00014999,2]
[331529405,1720449793179,155.52394417,0.00014999,2]
[331529406,1720449799795,1435.93035752,0.00014999,2]
[331529407,1720449805944,496.22354894,0.00014999,2]